fUSD/lending_fUSD_20260630
["ID","MTS","AMOUNT","RATE_DAILY","PERIOD"]
[426768667,1782797462000,-4491.5983011,0.00014357,2]
[426768664,1782797462000,-1133.09748047,0.00013156,2]
[426768671,1782797462000,-694.55969986,0.00014357,2]
[426768670,1782797462000,-1841.94319562,0.00014357,2]
[426768669,1782797462000,-441.41523098,0.00014357,2]
[426768672,1782797462000,-4555.88194327,0.00014357,2]
[426768666,1782797462000,-30350.60201724,0.00014357,2]
[426768673,1782797475000,-301.65,9.595e-05,2]
[426768674,1782797475000,-144.62508918,9.633e-05,2]
[426768675,1782797475000,-157.02491082,9.633e-05,2]
[426768676,1782797475000,-301.65,9.672e-05,2]
[426768677,1782797475000,-301.65,9.71e-05,2]
[426768678,1782797475000,-301.65,9.748e-05,2]
[426768682,1782797475000,-301.65,9.9e-05,2]
[426768679,1782797475000,-301.65,9.786e-05,2]
[426768681,1782797475000,-301.65,9.862e-05,2]
[426768684,1782797475000,-301.65,9.976e-05,2]
[426768680,1782797475000,-301.65,9.824e-05,2]
[426768685,1782797475000,-6049.86541174,0.00014357,2]
[426768688,1782797475000,-9551.31910621,0.00014357,2]
[426768686,1782797475000,-301.65,0.00010014,2]
[426768687,1782797475000,-2500.0,0.00010273,2]
[426768689,1782797475000,-29.89047548,0.00010052,2]
[426768683,1782797475000,-301.65,9.938e-05,2]
[426768690,1782797476000,-271.75952452,0.00010052,2]
[426768691,1782797476000,-29.89047548,0.0001009,2]
[426768692,1782797511000,-304.19,9.633e-05,2]
[426768694,1782797565000,-304.19,9.874e-05,2]
[426768698,1782797706000,-4176.48,9.671e-05,2]
[426768697,1782797706000,-306.36,9.613e-05,2]
[426768696,1782797706000,-517.16,9.138e-05,2]
[426768700,1782797707000,-306.36,9.671e-05,2]
[426768699,1782797707000,-70.75331707,9.671e-05,2]
[426768702,1782797707000,-306.36,9.787e-05,2]
[426768701,1782797707000,-306.36,9.729e-05,2]
[426768703,1782797707000,-216.62538722,9.798e-05,2]
[426768707,1782797707000,-201.51819642,9.949e-05,2]
[426768705,1782797707000,-201.51819643,9.903e-05,2]
[426768706,1782797707000,-306.36,9.903e-05,2]
[426768708,1782797707000,-306.36,9.961e-05,2]
[426768709,1782797707000,-2471.42490286,9.993e-05,2]
[426768704,1782797707000,-306.36,9.845e-05,2]
[426768713,1782797708000,-4197.68,9.993e-05,2]
[426768712,1782797708000,-160.0,9.808e-05,2]
[426768710,1782797708000,-321.16,9.613e-05,2]
[426768711,1782797708000,-321.16,9.773e-05,2]
[426768715,1782797709000,-4678.84,9.993e-05,2]
[426768714,1782797709000,-321.16,9.933e-05,2]
[426768716,1782797710000,-5000.0,9.993e-05,2]
[426768717,1782797711000,-3130.60102037,9.993e-05,2]
[426768719,1782797711000,-279.80433444,9.994e-05,2]
[426768718,1782797711000,-150.0,9.994e-05,2]
[426768722,1782797711000,-439.59464519,9.994e-05,2]
[426768720,1782797711000,-500.0,9.994e-05,2]
[426768721,1782797711000,-500.0,9.994e-05,2]
[426768735,1782797712000,-22.28034263,9.994e-05,2]
[426768733,1782797712000,-169.54683698,9.994e-05,2]
[426768734,1782797712000,-594.8838452,9.994e-05,2]
[426768732,1782797712000,-500.0,9.994e-05,2]
[426768731,1782797712000,-500.0,9.994e-05,2]
[426768729,1782797712000,-500.0,9.994e-05,2]
[426768728,1782797712000,-500.0,9.994e-05,2]
[426768730,1782797712000,-500.0,9.994e-05,2]
[426768727,1782797712000,-500.0,9.994e-05,2]
[426768726,1782797712000,-338.21509271,9.994e-05,2]
[426768725,1782797712000,-500.0,9.994e-05,2]
[426768723,1782797712000,-60.40535481,9.994e-05,2]
[426768724,1782797712000,-314.66852767,9.994e-05,2]
[426768737,1782797717000,-193.24868949,9.994e-05,2]
[426768736,1782797717000,-477.71965737,9.994e-05,2]
[426768738,1782797717000,-266.158584,9.994e-05,2]
[426768741,1782797717000,-63.37041749,9.994e-05,2]
[426768739,1782797717000,-500.0,9.994e-05,2]
[426768740,1782797717000,-1499.50265165,9.994e-05,2]
[426768742,1782797980000,-425.60524056,9.095e-05,2]
[426768743,1782798034000,-286.57866869,9.095e-05,2]
[426768744,1782798087000,-200.0,9.145e-05,2]
[426768745,1782798140000,-225.98984379,9.165e-05,2]
[426768746,1782798194000,-1848.57,9.003e-05,2]
[426768747,1782798247000,-1188.22,8.966e-05,2]
[426768748,1782798300000,-183.36,8.972e-05,2]
[426768749,1782798354000,-212.87,9.004e-05,2]
[426768750,1782798408000,-166.66,9.353e-05,2]
[426768751,1782798441000,500.0,0.0001,3]
[426768752,1782798461000,-207.91065628,9.363e-05,2]
[426768754,1782798538000,-1342.4059191,9.015e-05,2]
[426768755,1782798538000,-3067.75645255,9.015e-05,2]
[426768753,1782798538000,-2562.03,8.942e-05,2]
[426768757,1782798550000,-482.09,8.955e-05,2]
[426768758,1782798550000,-3104.81762835,9.015e-05,2]
[426768759,1782798550000,-277.58874476,9.015e-05,2]
[426768760,1782798550000,-150.0,9.105e-05,2]
[426768762,1782798550000,-200.0,9.282e-05,2]
[426768764,1782798550000,-500.0,9.367e-05,2]
[426768763,1782798550000,-150.0,9.285e-05,2]
[426768761,1782798550000,-150.0,9.195e-05,2]
[426768766,1782798550000,-500.0,9.367e-05,2]
[426768768,1782798550000,-500.0,9.367e-05,2]
[426768767,1782798550000,-319.16448018,9.367e-05,2]
[426768769,1782798550000,-500.0,9.367e-05,2]
[426768772,1782798550000,-150.76749847,9.367e-05,2]
[426768771,1782798550000,-500.0,9.367e-05,2]
[426768770,1782798550000,-500.0,9.367e-05,2]
[426768765,1782798550000,-156.98917329,9.367e-05,2]
[426768779,1782798563000,-500.0,9.367e-05,2]
[426768775,1782798563000,-500.0,9.367e-05,2]
[426768773,1782798563000,-349.23250153,9.367e-05,2]
[426768774,1782798563000,-500.0,9.367e-05,2]
[426768776,1782798563000,-500.0,9.367e-05,2]
[426768778,1782798563000,-500.0,9.367e-05,2]
[426768777,1782798563000,-500.0,9.367e-05,2]
[426768788,1782798563000,-227.39036998,9.367e-05,2]
[426768782,1782798563000,-305.352735,9.367e-05,2]
[426768780,1782798563000,-500.0,9.367e-05,2]
[426768784,1782798563000,-500.0,9.367e-05,2]
[426768783,1782798563000,-500.0,9.367e-05,2]
[426768785,1782798563000,-500.0,9.367e-05,2]
[426768787,1782798563000,-500.0,9.367e-05,2]
[426768786,1782798563000,-500.0,9.367e-05,2]
[426768781,1782798563000,-194.647265,9.367e-05,2]
[426768790,1782798585000,517.92073391,8.567e-05,2]
[426768789,1782798585000,730.14343803,8.567e-05,2]
[426768791,1782798587000,-201.51819642,9.367e-05,2]
[426768792,1782798587000,-272.60963002,9.367e-05,2]
[426768807,1782798588000,-126.68602121,9.367e-05,2]
[426768793,1782798588000,-500.0,9.367e-05,2]
[426768796,1782798588000,-500.0,9.367e-05,2]
[426768797,1782798588000,-500.0,9.367e-05,2]
[426768795,1782798588000,-500.0,9.367e-05,2]
[426768798,1782798588000,-500.0,9.367e-05,2]
[426768799,1782798588000,-500.0,9.367e-05,2]
[426768794,1782798588000,-500.0,9.367e-05,2]
[426768801,1782798588000,-288.71560248,9.367e-05,2]
[426768803,1782798588000,-500.0,9.367e-05,2]
[426768802,1782798588000,-500.0,9.367e-05,2]
[426768804,1782798588000,-500.0,9.367e-05,2]
[426768806,1782798588000,-325.65208455,9.367e-05,2]
[426768805,1782798588000,-500.0,9.367e-05,2]
[426768800,1782798588000,-211.28439752,9.367e-05,2]
[426768844,1782798633000,-216.62538722,0.00010027,2]
[426768842,1782798633000,-160.0,0.00010016,2]
[426768838,1782798633000,-173.08657126,0.0001,2]
[426768848,1782798633000,-271.75952452,0.0001009,2]
[426768839,1782798633000,-1000.0,0.0001,2]
[426768841,1782798633000,-1000.0,0.0001,2]
[426768840,1782798633000,-1000.0,0.0001,2]
[426768834,1782798633000,-456.464833,9.996e-05,2]
[426768846,1782798633000,-33353.4229,0.0001007,2]
[426768843,1782798633000,-306.36,0.0001002,2]
[426768845,1782798633000,-1280.59,0.00010027,2]
[426768859,1782798633000,-306.36,0.00010252,2]
[426768850,1782798633000,-183.36,0.00010093,2]
[426768861,1782798633000,-1280.59,0.00010278,2]
[426768860,1782798633000,-168.0,0.00010254,2]
[426768851,1782798633000,-321.16,0.00010094,2]
[426768852,1782798633000,-304.19,0.00010115,2]
[426768854,1782798633000,-306.36,0.00010136,2]
[426768830,1782798633000,-2140.22,9.831e-05,2]
[426768855,1782798633000,-301.65,0.00010167,2]
[426768853,1782798633000,-301.65,0.00010128,2]
[426768856,1782798633000,-306.36,0.00010194,2]
[426768858,1782798633000,-301.65,0.00010243,2]
[426768847,1782798633000,-306.36,0.00010078,2]
[426768833,1782798633000,-250.0,9.917e-05,2]
[426768828,1782798633000,-436.75,9.831e-05,2]
[426768829,1782798633000,-999.99,9.831e-05,2]
[426768810,1782798633000,-250.0,9.368e-05,2]
[426768809,1782798633000,-500.0,9.367e-05,2]
[426768812,1782798633000,-160.0,9.633e-05,2]
[426768818,1782798633000,-4392.41,9.793e-05,2]
[426768823,1782798633000,-5705.85,9.831e-05,2]
[426768819,1782798633000,-150.99,9.793e-05,2]
[426768822,1782798633000,-9999.99,9.831e-05,2]
[426768811,1782798633000,-321.16,9.602e-05,2]
[426768813,1782798633000,-702.6873,9.693e-05,2]
[426768815,1782798633000,-150.0,9.79e-05,2]
[426768814,1782798633000,-316.26,9.745e-05,2]
[426768832,1782798633000,-166.66,9.868e-05,2]
[426768817,1782798633000,-9999.99,9.793e-05,2]
[426768816,1782798633000,-90703.0099,9.793e-05,2]
[426768820,1782798633000,-311.08,9.831e-05,2]
[426768824,1782798633000,-14239.71,9.831e-05,2]
[426768825,1782798633000,-9999.99,9.831e-05,2]
[426768827,1782798633000,-57230.98,9.831e-05,2]
[426768835,1782798633000,-456.464833,9.996e-05,2]
[426768873,1782798633000,-150.0,0.00010456,2]
[426768826,1782798633000,-1565.03,9.831e-05,2]
[426768831,1782798633000,-309.56,9.835e-05,2]
[426768837,1782798633000,-456.464833,9.996e-05,2]
[426768836,1782798633000,-456.464833,9.996e-05,2]
[426768821,1782798633000,-1577.22,9.831e-05,2]
[426768863,1782798633000,-250.0,0.00010299,2]
[426768857,1782798633000,-301.65,0.00010205,2]
[426768865,1782798633000,-306.36,0.0001031,2]
[426768893,1782798633000,-166.66,0.00011507,2]
[426768889,1782798633000,-166.66,0.00011288,2]
[426768891,1782798633000,-166.66,0.00011397,2]
[426768890,1782798633000,-28095.35486067,0.00011382,2]
[426768898,1782798633000,-167.16,0.00012679,2]
[426768902,1782798633000,-736.0,0.00013031,2]
[426768903,1782798633000,-28095.35486067,0.00013072,2]
[426768862,1782798633000,-301.65,0.00010281,2]
[426768907,1782798633000,-456.464833,0.00013072,2]
[426768900,1782798633000,-150.0,0.00012895,2]
[426768905,1782798633000,-456.464833,0.00013072,2]
[426768895,1782798633000,-4559.19326684,0.00012209,2]
[426768901,1782798633000,-531.510597,0.00013007,2]
[426768904,1782798633000,-456.464833,0.00013072,2]
[426768908,1782798633000,-282.12772553,0.00013107,2]
[426768909,1782798633000,-27587.31999974,0.00013151,2]
[426768906,1782798633000,-456.464833,0.00013072,2]
[426768912,1782798633000,-839.7034388,0.0001328,2]
[426768916,1782798633000,-500.0,0.00013698,2]
[426768917,1782798633000,-500.0,0.00013698,2]
[426768913,1782798633000,-183.36,0.00013457,2]
[426768915,1782798633000,-500.0,0.00013698,2]
[426768911,1782798633000,-159.571,0.00013178,2]
[426768914,1782798633000,-208.95,0.00013658,2]
[426768910,1782798633000,-4745.957,0.00013178,2]
[426768888,1782798633000,-5832.40333492,0.00011278,2]
[426768899,1782798633000,-298.14731193,0.00012895,2]
[426768896,1782798633000,-183.36,0.00012336,2]
[426768864,1782798633000,-500.0,0.00010299,2]
[426768866,1782798633000,-301.65,0.00010319,2]
[426768894,1782798633000,-433.0,0.00011846,2]
[426768869,1782798633000,-304.2,0.00010368,2]
[426768868,1782798633000,-199.15,0.00010362,2]
[426768867,1782798633000,-301.65,0.00010357,2]
[426768870,1782798633000,-306.36,0.00010368,2]
[426768872,1782798633000,-301.65,0.00010395,2]
[426768881,1782798633000,-166.66,0.00010959,2]
[426768885,1782798633000,-28095.35486067,0.00011099,2]
[426768877,1782798633000,-166.66,0.00010897,2]
[426768879,1782798633000,-4559.19326686,0.000109,2]
[426768871,1782798633000,-166.66,0.00010382,2]
[426768874,1782798633000,-1280.59,0.00010529,2]
[426768875,1782798633000,-255.0,0.00010769,2]
[426768892,1782798633000,-27587.31999974,0.00011472,2]
[426768897,1782798633000,-1188.22,0.00012552,2]
[426768886,1782798633000,-166.66,0.00011178,2]
[426768883,1782798633000,-166.66,0.00011068,2]
[426768887,1782798633000,-183.36,0.00011215,2]
[426768880,1782798633000,-150.0,0.00010959,2]
[426768884,1782798633000,-27587.31999982,0.00011099,2]
[426768878,1782798633000,-2000.0,0.00010899,2]
[426768876,1782798633000,-1280.59,0.00010779,2]
[426768882,1782798633000,-1280.59,0.0001103,2]
[426768928,1782798634000,-500.0,0.00013698,2]
[426768927,1782798634000,-551.91895044,0.00013698,2]
[426768929,1782798634000,-500.0,0.00013698,2]
[426768933,1782798634000,-500.0,0.00013698,2]
[426768930,1782798634000,-500.0,0.00013698,2]
[426768936,1782798634000,-1302.38,0.00013698,2]
[426768931,1782798634000,-500.0,0.00013698,2]
[426768935,1782798634000,-501.81646866,0.00013698,2]
[426768921,1782798634000,-500.0,0.00013698,2]
[426768925,1782798634000,-500.0,0.00013698,2]
[426768926,1782798634000,-500.0,0.00013698,2]
[426768932,1782798634000,-500.0,0.00013698,2]
[426768918,1782798634000,-500.0,0.00013698,2]
[426768919,1782798634000,-500.0,0.00013698,2]
[426768920,1782798634000,-500.0,0.00013698,2]
[426768923,1782798634000,-500.0,0.00013698,2]
[426768922,1782798634000,-500.0,0.00013698,2]
[426768934,1782798634000,-500.0,0.00013698,2]
[426768938,1782798634000,-200.0,0.00013699,2]
[426768924,1782798634000,-500.0,0.00013698,2]
[426768940,1782798634000,-153.339654,0.00013699,2]
[426768958,1782798634000,-464.12272072,0.00013833,2]
[426768955,1782798634000,-33704.73052512,0.00013833,2]
[426768949,1782798634000,-1302.38,0.00013832,2]
[426768954,1782798634000,-43965.93114022,0.00013833,2]
[426768951,1782798634000,-1302.38,0.00013832,2]
[426768950,1782798634000,-1302.38,0.00013832,2]
[426768957,1782798634000,-297.80886455,0.00013833,2]
[426768953,1782798634000,-181376.05825904,0.00013833,2]
[426768956,1782798634000,-62344.39927091,0.00013833,2]
[426768937,1782798634000,-1302.38,0.00013698,2]
[426768948,1782798634000,-500.0,0.00013832,2]
[426768944,1782798634000,-1100.0,0.000138,5]
[426768941,1782798634000,-153.339654,0.00013699,2]
[426768943,1782798634000,-1712.59459739,0.00013733,2]
[426768947,1782798634000,-500.0,0.00013832,2]
[426768952,1782798634000,-3766.0,0.00013833,5]
[426768939,1782798634000,-153.339654,0.00013699,2]
[426768945,1782798634000,-521.04363516,0.00013832,2]
[426768946,1782798634000,-500.0,0.00013832,2]
[426768942,1782798634000,-153.339654,0.00013699,2]
[426768959,1782798637000,-305.29,9.619e-05,2]
[426768960,1782798637000,-305.29,9.655e-05,2]
[426768961,1782798638000,-305.29,9.691e-05,2]
[426768962,1782798638000,-926.43918541,9.693e-05,2]
[426768966,1782798638000,-305.29,9.727e-05,2]
[426768965,1782798638000,-4378.48266299,9.693e-05,2]
[426768963,1782798638000,-612.38722825,9.693e-05,2]
[426768967,1782798638000,-305.29,9.763e-05,2]
[426768969,1782798638000,-305.29,9.835e-05,2]
[426768964,1782798638000,-7958.52642335,9.693e-05,2]
[426768968,1782798638000,-305.29,9.799e-05,2]
[426768970,1782798638000,-221.71413126,0.00013833,2]
[426768972,1782798640000,-188.40083049,9.794e-05,2]
[426768971,1782798640000,-415.92611039,9.794e-05,2]
[426768973,1782798642000,-14.43994073,9.794e-05,2]
[426768980,1782798646000,-91622.69462899,0.00013833,2]
[426768977,1782798646000,-46314.02012212,0.00013833,2]
[426768976,1782798646000,-13082.73508818,0.00013833,2]
[426768975,1782798646000,-1881.23311839,9.794e-05,2]
[426768978,1782798646000,-4752.08536283,0.00013833,2]
[426768991,1782798836000,-500.0,9.692e-05,2]
[426768992,1782798890000,-300.43,9.6e-05,2]
[426768993,1782798909000,205.56,7.859e-05,2]
[426768994,1782798942000,-3617.48859794,9.592e-05,2]
[426768995,1782798956000,-3617.48859794,9.592e-05,2]
[426768996,1782798969000,-1247.6123047,9.592e-05,2]
[426768997,1782798983000,-1247.6123047,9.592e-05,2]
[426768998,1782798996000,-1307.63743058,9.592e-05,2]
[426768999,1782799009000,-1307.63743058,9.592e-05,2]
[426769000,1782799023000,-500.0,9.591e-05,2]
[426769003,1782799075000,-500.0,9.591e-05,2]
[426769005,1782799291000,1649.02273181,0.0001,3]
[426769004,1782799291000,950.97726819,0.0001,3]
[426769006,1782799295000,1027.02437262,9.591e-05,3]
[426769007,1782799322000,900.0,0.0001,3]
[426769008,1782799329000,1175.91847033,9.591e-05,3]
[426769010,1782799400000,9640.87720522,9.591e-05,7]
[426769009,1782799400000,911.99797999,9.591e-05,7]
[426769012,1782799401000,9640.87720522,9.783e-05,7]
[426769011,1782799401000,911.99797999,9.783e-05,7]
[426769014,1782799402000,9640.87720522,0.00010071,7]
[426769013,1782799402000,911.99797999,0.00010071,7]
[426769015,1782799403000,911.99797999,0.00010358,7]
[426769016,1782799403000,9640.87720522,0.00010358,7]
[426769018,1782799407000,-9640.87720525,0.00010742,7]
[426769017,1782799407000,-911.99798001,0.00010742,7]
[426769019,1782799432000,-150.0,9.587e-05,2]
[426769020,1782799486000,-1095.43,9.502e-05,2]
[426769021,1782799538000,-169.51,9.389e-05,2]
[426769022,1782799539000,200.0,8.729e-05,2]
[426769023,1782799592000,-3569.32,9.395e-05,2]
[426769024,1782799645000,-162.5,8.975e-05,2]
[426769025,1782799678000,200.0,9.591e-05,7]
[426769026,1782799679000,200.0,9.591e-05,7]
[426769027,1782799680000,200.0,9.591e-05,7]
[426769028,1782799681000,200.0,9.591e-05,7]
[426769029,1782799682000,200.0,9.591e-05,7]
[426769030,1782799684000,200.0,9.591e-05,7]
[426769031,1782799686000,200.0,9.591e-05,7]
[426769032,1782799698000,-206.03271539,9.219e-05,2]
[426769033,1782799705000,500.0,9.464e-05,3]
[426769036,1782799723000,-178.81484078,9.589e-05,2]
[426769034,1782799723000,-205.75,9.462e-05,2]
[426769035,1782799723000,-1009.89619606,9.462e-05,2]
[426769037,1782799723000,-563.62927891,9.589e-05,2]
[426769038,1782799724000,-317.65057427,9.589e-05,2]
[426769039,1782799724000,-302.09186028,9.589e-05,2]
[426769041,1782799724000,-500.0,9.589e-05,2]
[426769042,1782799724000,-347.5645194,9.589e-05,2]
[426769043,1782799724000,-152.4354806,9.589e-05,2]
[426769040,1782799724000,-500.0,9.589e-05,2]
[426769046,1782799724000,-500.0,9.589e-05,2]
[426769045,1782799724000,-500.0,9.589e-05,2]
[426769048,1782799724000,-500.0,9.589e-05,2]
[426769047,1782799724000,-343.31500637,9.589e-05,2]
[426769050,1782799724000,-398.58653563,9.589e-05,2]
[426769049,1782799724000,-393.37565669,9.589e-05,2]
[426769044,1782799724000,-500.0,9.589e-05,2]
[426769051,1782799752000,-101.41346437,9.589e-05,2]
[426769057,1782799753000,-349.97722627,9.589e-05,2]
[426769052,1782799753000,-500.0,9.589e-05,2]
[426769053,1782799753000,-617.28187157,9.589e-05,2]
[426769054,1782799753000,-500.0,9.589e-05,2]
[426769056,1782799753000,-559.20445322,9.589e-05,2]
[426769055,1782799753000,-307.09182605,9.589e-05,2]
[426769060,1782799753000,-176.89963835,9.589e-05,2]
[426769066,1782799753000,-356.17276558,9.589e-05,2]
[426769058,1782799753000,-500.0,9.589e-05,2]
[426769061,1782799753000,-323.10036165,9.589e-05,2]
[426769062,1782799753000,-500.0,9.589e-05,2]
[426769063,1782799753000,-559.20445322,9.589e-05,2]
[426769064,1782799753000,-500.0,9.589e-05,2]
[426769065,1782799753000,-559.20445322,9.589e-05,2]
[426769059,1782799753000,-559.20445322,9.589e-05,2]
[426769067,1782799759000,-143.82723442,9.589e-05,2]
[426769069,1782799759000,-500.0,9.589e-05,2]
[426769070,1782799759000,-559.20445322,9.589e-05,2]
[426769068,1782799759000,-559.20445322,9.589e-05,2]
[426769071,1782799759000,-500.0,9.589e-05,2]
[426769074,1782799759000,-500.0,9.589e-05,2]
[426769076,1782799759000,-500.0,9.589e-05,2]
[426769075,1782799759000,-559.20445322,9.589e-05,2]
[426769073,1782799759000,-500.0,9.589e-05,2]
[426769077,1782799759000,-529.7386587,9.589e-05,2]
[426769072,1782799759000,-559.20445322,9.589e-05,2]
[426769084,1782799773000,-559.20445322,9.589e-05,2]
[426769082,1782799773000,-559.20445322,9.589e-05,2]
[426769085,1782799773000,-500.0,9.589e-05,2]
[426769083,1782799773000,-500.0,9.589e-05,2]
[426769079,1782799773000,-500.0,9.589e-05,2]
[426769081,1782799773000,-559.20445322,9.589e-05,2]
[426769080,1782799773000,-500.0,9.589e-05,2]
[426769078,1782799773000,-29.46579452,9.589e-05,2]
[426769087,1782799774000,-59.27730867,9.589e-05,2]
[426769088,1782799774000,-500.0,9.589e-05,2]
[426769089,1782799774000,-559.20445322,9.589e-05,2]
[426769086,1782799774000,-499.92714455,9.589e-05,2]
[426769091,1782799774000,-559.20445322,9.589e-05,2]
[426769093,1782799774000,-559.20445322,9.589e-05,2]
[426769092,1782799774000,-500.0,9.589e-05,2]
[426769094,1782799774000,-12.92080286,9.589e-05,2]
[426769090,1782799774000,-500.0,9.589e-05,2]
[426769096,1782799805000,-500.0,9.589e-05,2]
[426769098,1782799805000,-559.20445322,9.589e-05,2]
[426769097,1782799805000,-500.0,9.589e-05,2]
[426769099,1782799805000,-500.0,9.589e-05,2]
[426769100,1782799805000,-500.0,9.589e-05,2]
[426769101,1782799805000,-559.20445322,9.589e-05,2]
[426769103,1782799805000,-559.20445322,9.589e-05,2]
[426769104,1782799805000,-178.52929447,9.589e-05,2]
[426769105,1782799805000,-358.63967174,9.589e-05,2]
[426769107,1782799805000,-559.20445322,9.589e-05,2]
[426769106,1782799805000,-559.20445322,9.589e-05,2]
[426769109,1782799805000,-402.56796036,9.589e-05,2]
[426769108,1782799805000,-500.0,9.589e-05,2]
[426769102,1782799805000,-500.0,9.589e-05,2]
[426769095,1782799805000,-546.28365036,9.589e-05,2]
[426769110,1782799817000,289.09879693,8.792e-05,2]
[426769111,1782799817000,217.2595002,8.789e-05,2]
[426769121,1782799831000,-250.0,9.59e-05,2]
[426769120,1782799831000,-177.08377207,9.544e-05,2]
[426769148,1782799832000,-300.43,9.679e-05,2]
[426769147,1782799832000,-300.45,9.669e-05,2]
[426769152,1782799832000,-18347.6671,9.693e-05,2]
[426769150,1782799832000,-150.0,9.685e-05,2]
[426769149,1782799832000,-306.41,9.685e-05,2]
[426769158,1782799832000,-300.45,9.738e-05,2]
[426769169,1782799832000,-160.0,9.854e-05,2]
[426769168,1782799832000,-300.43,9.836e-05,2]
[426769157,1782799832000,-300.43,9.731e-05,2]
[426769159,1782799832000,-307.53,9.747e-05,2]
[426769160,1782799832000,-300.43,9.758e-05,2]
[426769162,1782799832000,-150.0,9.781e-05,2]
[426769165,1782799832000,-301.75,9.798e-05,2]
[426769161,1782799832000,-163.56,9.778e-05,2]
[426769163,1782799832000,-305.51,9.782e-05,2]
[426769166,1782799832000,-300.45,9.806e-05,2]
[426769164,1782799832000,-300.43,9.784e-05,2]
[426769167,1782799832000,-300.43,9.81e-05,2]
[426769170,1782799832000,-500.0,9.854e-05,2]
[426769173,1782799832000,-300.43,9.862e-05,2]
[426769172,1782799832000,-216.62538722,9.855e-05,2]
[426769174,1782799832000,-250.0,9.873e-05,2]
[426769176,1782799832000,-306.41,9.877e-05,2]
[426769146,1782799832000,-301.75,9.661e-05,2]
[426769155,1782799832000,-300.43,9.705e-05,2]
[426769156,1782799832000,-163.37,9.71e-05,2]
[426769154,1782799832000,-302.25,9.699e-05,2]
[426769123,1782799832000,-500.0,9.59e-05,2]
[426769127,1782799832000,-200.0,9.591e-05,2]
[426769129,1782799832000,-200.0,9.591e-05,2]
[426769122,1782799832000,-305.51,9.59e-05,2]
[426769126,1782799832000,-420.11349684,9.59e-05,2]
[426769124,1782799832000,-500.0,9.59e-05,2]
[426769125,1782799832000,-500.0,9.59e-05,2]
[426769128,1782799832000,-200.0,9.591e-05,2]
[426769130,1782799832000,-200.0,9.591e-05,2]
[426769132,1782799832000,-200.0,9.591e-05,2]
[426769142,1782799832000,-141602.19650952,9.653e-05,2]
[426769143,1782799832000,-8727.95349048,9.653e-05,2]
[426769131,1782799832000,-200.0,9.591e-05,2]
[426769135,1782799832000,-214182.82303356,9.592e-05,2]
[426769133,1782799832000,-200.0,9.591e-05,2]
[426769134,1782799832000,-200.0,9.591e-05,2]
[426769138,1782799832000,-299.99,9.627e-05,2]
[426769139,1782799832000,-300.43,9.653e-05,2]
[426769137,1782799832000,-300.43,9.627e-05,2]
[426769136,1782799832000,-300.45,9.6e-05,2]
[426769140,1782799832000,-2010.47,9.653e-05,2]
[426769141,1782799832000,-9999.99,9.653e-05,2]
[426769144,1782799832000,-1525.73,9.653e-05,2]
[426769145,1782799832000,-150.99,9.653e-05,2]
[426769153,1782799832000,-2000.0,9.693e-05,2]
[426769175,1782799832000,-300.45,9.875e-05,2]
[426769182,1782799832000,-300.43,9.915e-05,2]
[426769151,1782799832000,-305.51,9.686e-05,2]
[426769180,1782799832000,-300.43,9.889e-05,2]
[426769208,1782799832000,-939.53,0.00010529,2]
[426769209,1782799832000,-250.0,0.00010548,2]
[426769211,1782799832000,-1626.70630477,0.00010899,2]
[426769210,1782799832000,-939.53,0.00010779,2]
[426769212,1782799832000,-3419.39495013,0.000109,2]
[426769213,1782799832000,-169.51,0.00010954,2]
[426769215,1782799832000,-150.0,0.00010959,2]
[426769216,1782799832000,-150.0,0.00010959,2]
[426769214,1782799832000,-166.66,0.00010959,2]
[426769220,1782799832000,-10579.25136992,0.00011099,2]
[426769221,1782799832000,-8810.48385685,0.00011099,2]
[426769218,1782799832000,-939.53,0.0001103,2]
[426769222,1782799832000,-861.12332428,0.00011099,2]
[426769223,1782799832000,-19364.78964281,0.00011099,2]
[426769219,1782799832000,-166.66,0.00011068,2]